bitfinex-derivatives/quotes_SOLF0:USTF0_20250623
["timestamp","ask_amount","ask_price","bid_price","bid_amount"]
[1750636801570,9.02924822,131.78,131.66,2.3334]
[1750636801972,9.02924822,131.77,131.66,2.3334]
[1750636802275,12.11821636,131.76,131.66,2.3334]
[1750636802463,12.11821636,131.75,131.66,2.3334]
[1750636802663,6.08709337,131.77,131.66,2.3334]
[1750636802867,6.08709337,131.76,131.66,2.3334]
[1750636803165,6.08709337,131.75,131.66,2.3334]
[1750636803370,15.10900901,131.76,131.66,2.3334]
[1750636803569,12.11088378,131.75,131.68,7.5918]
[1750636803970,7.59,131.72,131.68,7.5918]
[1750636805071,6.01852211,131.75,131.66,2.3334]
[1750636805272,38.8,131.74,131.66,2.3334]
[1750636805471,41.2078,131.74,131.66,2.3334]
[1750636805770,7.5905,131.71,131.64,2.3867]
[1750636805971,38.8,131.7,131.63,2.5177]
[1750636806172,38.8,131.7,131.64,2.5147]
[1750636807574,7.5922,131.68,131.63,2.5177]
[1750636807874,38.8,131.7,131.63,2.5177]
[1750636808081,7.5923,131.68,131.64,7.5938]
[1750636808271,7.5923,131.68,131.63,2.5177]
[1750636808272,38.8,131.7,131.63,2.5177]
[1750636810269,7.5916,131.69,131.65,7.5933]
[1750636811572,38.8,131.7,131.63,2.5177]
[1750636811965,7.5923,131.68,131.63,2.5177]
[1750636812171,38.8,131.7,131.63,2.5177]
[1750636812376,7.5921,131.68,131.64,7.5939]
[1750636814178,7.5924,131.67,131.64,7.5939]
[1750636816486,7.5924,131.67,131.63,7.5945]
[1750636816682,38.82,131.66,131.6,2.4641]
[1750636816883,38.82,131.66,131.56,38.82]
[1750636816884,38.82,131.65,131.56,38.82]
[1750636817078,2.3352,131.69,131.56,38.82]
[1750636817079,38.82,131.64,131.56,38.82]
[1750636817475,38.82,131.64,131.55,2.5192]
[1750636817981,7.5951,131.63,131.59,7.597]
[1750636818284,38.82,131.64,131.59,7.597]
[1750636818685,7.5953,131.62,131.59,7.597]
[1750636819281,7.5953,131.62,131.55,2.5192]
[1750636819782,7.5953,131.62,131.58,7.5973]
[1750636820176,7.5953,131.62,131.55,2.5192]
[1750636820578,7.5961,131.61,131.55,2.5192]
[1750636820778,7.5961,131.61,131.57,7.5977]
[1750636821183,38.82,131.6,131.55,2.5192]
[1750636821385,38.82,131.59,131.5,2.4525]
[1750636821592,2.3587,131.63,131.5,4.8313]
[1750636821593,38.82,131.58,131.5,4.8313]
[1750636821787,38.82,131.57,131.54,7.5994]
[1750636821985,38.82,131.56,131.5,4.8313]
[1750636822291,46.4188,131.56,131.53,7.6004]
[1750636823087,46.4188,131.56,131.52,7.6009]
[1750636823591,46.4188,131.56,131.53,7.6005]
[1750636823989,38.82,131.56,131.53,7.6005]
[1750636826093,38.82,131.56,131.54,7.5999]
[1750636826295,38.82,131.56,131.5,4.8313]
[1750636826491,38.82,131.56,131.54,7.5998]
[1750636826697,186.17292806,131.63,131.5,4.8313]
[1750636826698,38.84,131.59,131.5,4.8313]
[1750636826897,38.84,131.61,131.5,4.8313]
[1750636827788,7.5967,131.6,131.56,7.5984]
[1750636828194,38.84,131.61,131.56,7.5984]
[1750636828589,38.84,131.61,131.57,7.5982]
[1750636829701,46.4361,131.61,131.58,7.5976]
[1750636830192,38.84,131.61,131.53,38.84]
[1750636830394,38.84,131.61,131.54,2.3663]
[1750636830798,38.84,131.61,131.58,7.5972]
[1750636831193,38.84,131.61,131.54,2.3663]
[1750636831393,7.5977,131.58,131.55,7.599]
[1750636831602,38.84,131.57,131.5,43.6713]
[1750636831791,38.84,131.56,131.5,43.6713]
[1750636831992,38.84,131.56,131.53,7.6001]
[1750636832398,46.4391,131.56,131.52,7.6009]
[1750636832805,38.84,131.56,131.5,4.8313]
[1750636833607,38.84,131.56,131.48,2.4282]
[1750636833803,38.84,131.56,131.47,7.605]
[1750636834003,7.5995,131.55,131.52,7.6009]
[1750636834204,7.5995,131.55,131.47,7.605]
[1750636834606,7.5995,131.55,131.51,7.6015]
[1750636834809,7.5995,131.55,131.47,7.605]
[1750636835200,658.8507,131.58,131.47,7.605]
[1750636835398,38.82,131.57,131.48,43.7117]
[1750636835800,38.82,131.57,131.54,7.5996]
[1750636836205,46.4185,131.57,131.53,7.6001]
[1750636836408,46.4185,131.57,131.49,2.4369]
[1750636836609,38.82,131.57,131.49,2.4369]
[1750636837108,38.82,131.57,131.54,7.5996]
[1750636837406,2.5507,131.62,131.52,38.82]
[1750636837600,38.82,131.61,131.53,2.477]
[1750636837804,38.82,131.61,131.54,2.3554]
[1750636838000,38.82,131.61,131.59,7.5966]
[1750636838604,656.4,131.65,131.56,38.82]
[1750636838810,38.82,131.66,131.56,38.82]
[1750636839210,5.96285594,131.65,131.63,7.5942]
[1750636839408,44.78285594,131.66,131.56,38.82]
[1750636839607,38.82,131.66,131.56,38.82]
[1750636839807,5.96190269,131.65,131.56,38.82]
[1750636840008,38.82,131.66,131.56,38.82]
[1750636840203,5.96179774,131.65,131.62,7.5949]
[1750636840411,5.96283877,131.65,131.56,38.82]
[1750636840810,5.96283877,131.65,131.63,7.5947]
[1750636841012,38.82,131.66,131.56,38.82]
[1750636841210,44.78458357,131.66,131.56,38.82]
[1750636841409,38.82,131.66,131.56,38.82]
[1750636841914,44.78458357,131.66,131.64,7.5938]
[1750636842116,38.82,131.66,131.64,7.5938]
[1750636842515,44.78458357,131.66,131.63,7.5945]
[1750636842715,38.82,131.66,131.63,7.5945]
[1750636843410,44.79651046,131.66,131.63,7.5945]
[1750636843711,38.82,131.66,131.64,7.5941]
[1750636843913,44.79651046,131.66,131.64,7.5941]
[1750636844411,44.79651046,131.66,131.57,62.0]
[1750636844716,5.97651046,131.65,131.56,38.82]
[1750636844915,38.82,131.66,131.63,7.5942]
[1750636845116,44.79651046,131.66,131.63,7.5942]
[1750636845511,38.82,131.66,131.63,7.5942]
[1750636846613,7.5938,131.65,131.61,7.5956]
[1750636846820,5.98115516,131.65,131.56,38.82]
[1750636847023,38.82,131.66,131.56,38.82]
[1750636847214,5.98115516,131.65,131.56,38.82]
[1750636847617,5.98115516,131.64,131.56,38.82]
[1750636847926,7.5945,131.64,131.6,7.5961]
[1750636848510,7.5945,131.64,131.59,7.5969]
[1750636849715,5.98162482,131.64,131.55,2.5139]
[1750636850017,8.46632482,131.63,131.55,2.5139]
[1750636850218,7.5964,131.61,131.57,7.5977]
[1750636851518,7.5965,131.6,131.56,7.5987]
[1750636851720,5.97072264,131.61,131.55,2.5139]
[1750636851919,44.79062279,131.62,131.55,2.5139]
[1750636852117,7.5972,131.59,131.56,7.5987]
[1750636852523,5.97062279,131.61,131.56,7.5987]
[1750636852720,38.82,131.62,131.55,2.5139]
[1750636853121,38.82,131.62,131.56,7.5986]
[1750636853329,44.79062279,131.62,131.55,2.5139]
[1750636854015,7.5961,131.61,131.55,2.5139]
[1750636854221,38.82,131.62,131.55,2.5139]
[1750636855227,38.82,131.62,131.58,7.5972]
[1750636855420,38.82,131.62,131.55,2.5139]
[1750636855823,38.82,131.62,131.6,7.596]
[1750636856023,38.82,131.62,131.55,2.5139]
[1750636856427,38.82,131.62,131.59,7.5967]
[1750636856629,38.82,131.62,131.55,2.5139]
[1750636856823,7.5959,131.61,131.57,7.5976]
[1750636857224,7.5959,131.61,131.55,2.5139]
[1750636857424,7.5967,131.6,131.55,2.5139]
[1750636857625,38.82,131.62,131.55,2.5139]
[1750636857822,5.97196605,131.61,131.53,2.477]
[1750636858025,5.97196605,131.61,131.5,38.82]
[1750636858026,5.97196605,131.6,131.51,2.4027]
[1750636858226,5.97196605,131.59,131.51,2.4027]
[1750636858427,38.82,131.58,131.51,2.4027]
[1750636859434,7.5986,131.57,131.51,2.4027]
[1750636859635,7.5986,131.57,131.53,7.6002]
[1750636860031,7.5986,131.57,131.51,2.4027]
[1750636861240,46.4178,131.58,131.54,7.5995]
[1750636861537,38.82,131.6,131.52,38.82]
[1750636861735,38.82,131.6,131.57,7.5979]
[1750636861938,38.82,131.6,131.52,38.82]
[1750636862133,5.98383948,131.62,131.52,38.82]
[1750636862334,695.06,131.63,131.53,2.521]
[1750636862532,5.98425624,131.62,131.54,2.3679]
[1750636862730,5.98425624,131.61,131.53,2.521]
[1750636862934,5.98425624,131.6,131.53,2.521]
[1750636863136,38.82,131.59,131.53,2.521]
[1750636864539,656.24,131.63,131.53,2.521]
[1750636864737,46.4156,131.62,131.54,100.82]
[1750636865741,7.5959,131.61,131.58,7.5972]
[1750636866040,38.82,131.62,131.54,100.82]
[1750636866833,7.5961,131.61,131.54,100.82]
[1750636867938,7.5961,131.61,131.57,7.5977]
[1750636868637,7.5965,131.6,131.57,7.5977]
[1750636869736,7.5962,131.61,131.54,38.82]
[1750636869937,7.5962,131.61,131.55,2.395]
[1750636870242,7.5966,131.6,131.55,2.395]
[1750636870635,38.82,131.62,131.55,2.395]
[1750636870837,7.5974,131.59,131.55,2.395]
[1750636871235,7.5974,131.59,131.55,9.9942]
[1750636871438,7.5968,131.6,131.55,2.395]
[1750636871949,7.5963,131.61,131.55,2.395]
[1750636872150,38.82,131.62,131.56,2.3107]
[1750636872341,5.97855636,131.61,131.56,7.5984]
[1750636872538,44.79855636,131.62,131.56,7.5984]
[1750636873048,7.5969,131.6,131.56,7.5984]
[1750636873436,8.95718198,131.61,131.53,2.3107]
[1750636873751,7.5979,131.58,131.53,2.3107]
[1750636873944,46.7979,131.58,131.53,2.3107]
[1750636874340,39.2,131.58,131.53,2.3107]
[1750636875543,39.2,131.61,131.53,2.3107]
[1750636875746,39.2,131.61,131.54,4.7638]
[1750636876046,46.7959,131.61,131.58,7.5975]
[1750636877545,7.5965,131.6,131.57,7.598]
[1750636879554,46.7962,131.61,131.57,7.598]
[1750636879948,39.2,131.61,131.55,39.2]
[1750636880846,39.2,131.61,131.59,7.597]
[1750636881952,39.2,131.61,131.6,7.5965]
[1750636882142,39.2,131.61,131.55,39.2]
[1750636882344,39.2,131.61,131.59,7.5967]
[1750636883451,46.7959,131.61,131.58,7.5974]
[1750636883649,39.2,131.61,131.55,39.2]
[1750636884253,39.2,131.61,131.59,7.5966]
[1750636884753,39.2,131.61,131.55,39.2]
[1750636885349,7.5972,131.59,131.56,7.5985]
[1750636885848,7.5967,131.6,131.56,7.5987]
[1750636886450,39.2,131.61,131.56,7.5987]
[1750636886642,39.2,131.61,131.54,4.7638]
[1750636886643,39.2,131.61,131.57,7.5981]
[1750636886842,45.19821009,131.61,131.57,7.5981]
[1750636887049,39.2,131.61,131.57,7.5981]
[1750636887249,7.5968,131.6,131.57,7.5981]
[1750636888155,7.5968,131.6,131.56,7.5986]
[1750636888453,7.5968,131.6,131.54,4.7638]
[1750636889654,7.5968,131.6,131.56,7.5984]
[1750636890655,39.2,131.61,131.55,7.5992]
[1750636890852,6.00018121,131.6,131.53,2.3107]
[1750636891056,42.1803927,131.61,131.53,2.3107]
[1750636891255,7.5974,131.59,131.55,7.5993]
[1750636891555,39.2,131.61,131.53,2.3107]
[1750636891754,6.0043924,131.6,131.57,7.5978]
[1750636891949,39.2,131.61,131.57,7.5978]
[1750636892152,6.00239848,131.6,131.57,7.5978]
[1750636892351,39.2,131.61,131.57,7.5978]
[1750636892551,13.59836456,131.6,131.57,7.5978]
[1750636892754,7.5968,131.6,131.57,7.5978]
[1750636893056,39.2,131.61,131.53,2.3107]
[1750636893355,14.95818185,131.6,131.49,44.1681]
[1750636893547,14.95818185,131.59,131.52,7.6007]
[1750636893747,14.95818185,131.58,131.52,7.6007]
[1750636893955,45.20185636,131.57,131.49,4.9681]
[1750636894257,7.6004,131.54,131.51,7.6016]
[1750636894457,7.6004,131.54,131.49,2.5503]
[1750636894458,7.6004,131.54,131.48,2.5272]
[1750636894655,7.5996,131.55,131.48,2.5272]
[1750636895058,2.4422,131.59,131.57,7.5979]
[1750636895256,14.94796105,131.61,131.52,39.2]
[1750636895459,5.9990412,131.6,131.53,44.0704]
[1750636895757,5.99867791,131.59,131.53,44.0704]
[1750636896052,5.99818749,131.6,131.53,44.0704]
[1750636896259,39.66,131.59,131.53,4.8704]
[1750636896661,39.66,131.59,131.53,2.4376]
[1750636896855,39.66,131.59,131.5,53.7773037]
[1750636897054,7.5987,131.57,131.53,7.6002]
[1750636897956,7.5988,131.56,131.52,7.601]
[1750636898156,5.79128747,131.57,131.49,2.4328]
[1750636898357,186.76,131.59,131.5,14.1173037]
[1750636898657,186.76,131.59,131.49,16.5501037]
[1750636898958,39.66,131.59,131.57,7.5982]
[1750636899157,39.66,131.59,131.5,14.1173037]
[1750636899460,5.79026853,131.58,131.49,2.4328]
[1750636899661,7.5983,131.57,131.53,7.6002]
[1750636900056,8.76185357,131.58,131.49,2.4328]
[1750636900255,7.5989,131.56,131.52,7.6007]
[1750636900461,39.66,131.55,131.52,7.6007]
[1750636901561,47.2596,131.55,131.52,7.6007]
[1750636902163,47.2596,131.55,131.51,7.6014]
[1750636902967,39.66,131.55,131.49,2.4328]
[1750636903561,47.2594,131.55,131.51,7.6013]
[1750636903863,39.66,131.55,131.48,4.9648]
[1750636904066,7.6,131.54,131.5,7.6022]
[1750636904455,39.66,131.55,131.48,4.9648]
[1750636904664,47.2597,131.55,131.51,7.6013]
[1750636905557,2.3041,131.61,131.48,4.9648]
[1750636905858,39.66,131.6,131.5,14.1173037]
[1750636906059,39.66,131.6,131.57,7.5982]
[1750636906258,39.66,131.6,131.51,42.0445]
[1750636906660,39.66,131.6,131.51,56.1618037]
[1750636906967,39.66,131.6,131.52,14.1173037]
[1750636907369,39.66,131.6,131.59,7.5971]
[1750636910467,39.66,131.6,131.58,7.5974]
[1750636912763,39.66,131.6,131.59,7.5971]
[1750636915977,695.88,131.63,131.55,39.64]
[1750636916271,39.64,131.63,131.55,39.64]
[1750636916464,39.64,131.66,131.63,7.5945]
[1750636917467,39.64,131.66,131.59,39.64]
[1750636917666,39.64,131.66,131.6,4.6674]
[1750636918073,16.36756495,131.69,131.65,7.5933]
[1750636918266,658.8577,131.7,131.6,4.6674]
[1750636918870,7.5919,131.68,131.6,4.6674]
[1750636919270,658.8577,131.7,131.6,4.6674]
[1750636919871,7.5917,131.69,131.64,7.5937]
[1750636920269,7.5917,131.69,131.6,4.6674]
[1750636920473,7.5917,131.69,131.65,7.5931]
[1750636920880,147.1,131.68,131.6,4.6674]
[1750636921067,39.64,131.67,131.6,4.6674]
[1750636921572,47.2328,131.67,131.63,7.5943]
[1750636921981,39.64,131.67,131.6,4.6674]
[1750636922174,656.34,131.7,131.6,4.6674]
[1750636922476,39.64,131.68,131.61,42.0165]
[1750636923476,656.34,131.7,131.61,42.0165]
[1750636923672,39.64,131.71,131.61,42.0165]
[1750636924078,7.5908,131.7,131.66,7.5926]
[1750636924279,39.64,131.71,131.62,39.64]
[1750636924680,7.5916,131.69,131.62,39.64]
[1750636925380,7.5916,131.69,131.64,7.5941]
[1750636925680,7.5922,131.68,131.61,2.3765]
[1750636925877,39.64,131.67,131.63,7.5943]
[1750636926375,47.2328,131.67,131.63,7.5943]
[1750636926780,39.64,131.67,131.62,7.5951]
[1750636927176,7.5934,131.66,131.62,7.5951]
[1750636929082,7.5936,131.65,131.61,7.5958]
[1750636929472,39.64,131.67,131.6,4.6674]
[1750636929780,39.64,131.67,131.6,2.321]
[1750636930084,39.64,131.67,131.61,7.5956]
[1750636930085,7.5936,131.65,131.61,7.5956]
[1750636931286,7.5932,131.66,131.62,7.5952]
[1750636932876,39.64,131.67,131.6,2.321]
[1750636933579,47.2325,131.67,131.63,7.5944]
[1750636933978,47.2325,131.67,131.6,2.321]
[1750636934179,39.64,131.67,131.6,42.101]
[1750636934376,39.64,131.67,131.61,2.5331]
[1750636934580,39.64,131.67,131.66,7.593]
[1750636934980,39.64,131.67,131.62,2.3119]
[1750636935184,39.64,131.67,131.66,7.593]
[1750636936792,39.78,131.7,131.67,7.5924]
[1750636938085,39.78,131.7,131.68,7.5918]
[1750636938290,39.78,131.7,131.62,2.3119]
[1750636939081,39.78,131.7,131.68,7.5915]
[1750636939986,39.78,131.7,131.64,39.78]
[1750636940182,39.78,131.7,131.62,2.3119]
[1750636940586,7.5922,131.68,131.64,7.5938]
[1750636942387,7.5922,131.68,131.65,7.5935]
[1750636942591,7.5915,131.69,131.62,2.3119]
[1750636943392,7.5915,131.69,131.64,7.5941]
[1750636943795,7.5915,131.69,131.62,2.3119]
[1750636943985,39.78,131.7,131.62,2.3119]
[1750636944185,7.592,131.68,131.62,2.3119]
[1750636944489,39.78,131.7,131.66,7.5927]
[1750636944688,47.3709,131.7,131.66,7.5927]
[1750636945389,39.78,131.7,131.62,2.3119]
[1750636945690,39.78,131.73,131.62,2.3119]
[1750636946897,39.78,131.73,131.71,7.5897]
[1750636948593,39.78,131.73,131.68,2.4137]
[1750636949193,39.78,131.73,131.71,7.5901]
[1750636949494,39.78,131.76,131.68,2.4137]
[1750636949693,39.78,131.76,131.69,4.6615]
[1750636950094,655.84,131.84,131.69,4.6615]
[1750636950095,39.78,131.79,131.69,4.6615]
[1750636950394,45.6005054,131.8,131.69,4.6615]
[1750636950587,39.78,131.8,131.69,4.6615]
[1750636951193,53.1858054,131.8,131.76,7.5872]
[1750636951387,47.3653,131.8,131.76,7.5872]
[1750636951593,39.78,131.8,131.71,39.78]
[1750636951792,7.5859,131.79,131.71,39.78]
[1750636952187,39.78,131.8,131.71,39.78]
[1750636952589,8.16036481,131.79,131.69,4.6615]
[1750636952791,5.82946481,131.78,131.69,4.6615]
[1750636952983,5.82946481,131.77,131.69,2.3259]
[1750636953189,7.589,131.73,131.7,7.5903]
[1750636953389,39.76,131.72,131.65,39.76]
[1750636953994,39.76,131.72,131.68,7.5918]
[1750636954197,39.76,131.72,131.65,39.76]
[1750636954399,7.5901,131.71,131.67,7.592]
[1750636955196,47.3498,131.72,131.65,39.76]
[1750636955392,39.76,131.72,131.65,39.76]
[1750636955595,39.76,131.72,131.69,7.5909]
[1750636955988,39.76,131.72,131.65,39.76]
[1750636956292,39.76,131.72,131.69,7.5909]
[1750636956494,39.76,131.72,131.65,39.76]
[1750636957797,39.76,131.72,131.63,64.3208]
[1750636957997,39.76,131.72,131.63,2.3208]
[1750636958200,2.3978,131.71,131.63,2.3208]
[1750636958392,7.5917,131.69,131.65,7.5932]
[1750636959903,7.5909,131.7,131.66,7.5929]
[1750636960398,2.3978,131.71,131.63,2.3208]
[1750636960603,9.9883,131.71,131.63,2.3208]
[1750636961302,9.9883,131.71,131.67,7.5919]
[1750636961303,7.5905,131.71,131.67,7.5919]
[1750636961604,7.5908,131.7,131.63,2.3208]
[1750636962308,7.5908,131.7,131.66,7.5925]
[1750636962505,7.5904,131.71,131.63,2.3208]
[1750636963206,39.76,131.72,131.63,2.3208]
[1750636963803,7.5902,131.71,131.67,7.5921]
[1750636964598,39.76,131.72,131.63,2.3208]
[1750636965002,39.76,131.72,131.69,7.591]
[1750636965207,39.76,131.72,131.65,39.6]
[1750636965698,39.76,131.72,131.69,7.5908]
[1750636966105,80.5893,131.73,131.69,7.5908]
[1750636966106,120.1893,131.73,131.69,7.5908]
[1750636967001,120.1893,131.73,131.7,7.5906]
[1750636967407,120.1893,131.73,131.65,39.6]
[1750636967608,120.1893,131.73,131.69,7.591]
[1750636968506,112.6,131.73,131.7,7.5906]
[1750636968908,120.189,131.73,131.69,7.591]
[1750636969305,112.6,131.73,131.65,39.6]
[1750636969907,112.6,131.73,131.63,2.3208]
[1750636970910,5.82420801,131.72,131.63,2.3208]
[1750636971105,7.5916,131.69,131.65,7.5932]
[1750636971307,39.6,131.69,131.63,2.3208]
[1750636971809,112.6,131.72,131.63,2.3208]
[1750636972112,39.6,131.72,131.63,2.3208]
[1750636972409,39.6,131.72,131.7,7.5903]
[1750636972605,2.3009,131.74,131.66,39.6]
[1750636972810,39.6,131.76,131.67,4.6951]
[1750636973107,39.6,131.76,131.68,2.5202]
[1750636973407,39.6,131.76,131.73,7.5887]
[1750636973705,39.6,131.76,131.74,7.588]
[1750636974306,39.6,131.76,131.73,7.5887]
[1750636974701,39.6,131.76,131.69,62.0]
[1750636975105,39.6,131.76,131.74,7.5881]
[1750636975711,39.6,131.76,131.75,7.5878]
[1750636975913,42.0449,131.79,131.7,39.6]
[1750636976312,42.0449,131.79,131.75,7.5875]
[1750636977008,49.6308,131.79,131.75,7.5875]
[1750636978315,7.5861,131.78,131.74,7.5882]
[1750636979014,49.6307,131.79,131.75,7.5877]
[1750636979815,7.5863,131.78,131.75,7.5877]
[1750636980516,42.0449,131.79,131.67,4.6951]
[1750636980809,42.0449,131.79,131.66,14.07681029]
[1750636980810,110.70604442,131.78,131.62,53.67681029]
[1750636981116,125.79582929,131.77,131.6,7.3313]
[1750636981316,190.35524682,131.76,131.6,7.3313]
[1750636981615,156.07483536,131.75,131.63,7.5944]
[1750636981815,93.67483536,131.74,131.6,7.3313]
[1750636982117,7.593,131.67,131.63,7.5946]
[1750636982315,39.6,131.66,131.63,7.5946]
[1750636983211,39.6,131.66,131.56,14.07681029]
[1750636983418,39.6,131.66,131.55,39.6]
[1750636983617,7.5949,131.63,131.55,39.6]
[1750636983813,2.4205,131.65,131.61,7.5959]
[1750636984323,10.0144,131.65,131.61,7.5959]
[1750636984508,2.4205,131.65,131.55,39.6]
[1750636984711,10.0142,131.65,131.55,39.6]
[1750636984919,2.4205,131.65,131.55,39.6]
[1750636986019,2.4205,131.65,131.61,7.5955]
[1750636986219,10.0142,131.65,131.61,7.5955]
[1750636986921,2.4205,131.65,131.61,7.5955]
[1750636987122,42.0205,131.65,131.61,7.5955]
[1750636987919,2.4205,131.65,131.61,7.5955]
[1750636988221,49.5741,131.65,131.61,7.5955]
[1750636988416,49.5741,131.65,131.6,7.5963]
[1750636988816,7.5942,131.64,131.6,7.5963]
[1750636989115,47.1542,131.64,131.55,39.6]
[1750636989522,39.56,131.64,131.6,7.5964]
[1750636990725,39.56,131.64,131.59,7.5968]
[1750636990921,39.56,131.64,131.55,39.6]
[1750636991516,7.5955,131.62,131.57,7.598]
[1750636991722,39.56,131.64,131.57,7.598]
[1750636992115,7.5958,131.62,131.57,7.598]
[1750636992322,39.56,131.64,131.57,7.598]
[1750636992723,39.56,131.64,131.58,7.5973]
[1750636992922,7.5957,131.62,131.58,7.5973]
[1750636993122,7.5957,131.62,131.54,4.6753]
[1750636993323,7.5957,131.62,131.58,7.5974]
[1750636993823,7.5948,131.63,131.59,7.5965]
[1750636994931,47.1542,131.64,131.6,7.5964]
[1750636995528,7.5948,131.63,131.59,7.5969]
[1750636995922,39.56,131.64,131.54,4.6753]
[1750636996119,47.1543,131.64,131.54,4.6753]
[1750636996726,47.1543,131.64,131.59,7.5967]
[1750636997532,7.5948,131.63,131.59,7.5967]
[1750636997720,39.56,131.64,131.6,7.5964]
[1750636998531,47.1546,131.64,131.59,7.5968]
[1750636999432,7.5948,131.63,131.59,7.5968]
[1750637000627,47.1543,131.64,131.6,7.5963]
[1750637001434,7.5948,131.63,131.59,7.5968]
[1750637001932,7.5951,131.63,131.54,4.6753]
[1750637002131,7.5951,131.63,131.59,7.5967]
[1750637002427,120.1545,131.64,131.54,4.6753]
[1750637002623,120.1545,131.64,131.59,7.5966]
[1750637002820,120.1545,131.64,131.54,4.6753]
[1750637003027,112.56,131.64,131.54,4.6753]
[1750637003625,120.1545,131.64,131.6,7.5964]
[1750637004233,7.5951,131.63,131.59,7.5969]
[1750637004731,120.1545,131.64,131.6,7.5964]
[1750637006435,112.56,131.64,131.55,2.3218]
[1750637006631,112.56,131.64,131.56,39.58]
[1750637006825,73.0,131.7,131.56,39.58]
[1750637007132,73.0,131.7,131.56,47.181]
[1750637007329,39.58,131.72,131.57,29.27311029]
[1750637007530,39.58,131.72,131.57,15.1963]
[1750637007730,39.58,131.72,131.57,14.07681029]
[1750637007932,39.58,131.72,131.58,15.1953]
[1750637008328,39.58,131.72,131.59,2.423]
[1750637008530,80.5906,131.71,131.66,7.5928]
[1750637009434,73.0,131.71,131.68,7.5918]
[1750637009838,73.0,131.71,131.62,39.58]
[1750637010036,73.0,131.71,131.67,7.5922]
[1750637010237,80.5903,131.71,131.67,7.5922]
[1750637010438,80.5903,131.71,131.66,7.5928]
[1750637012239,7.5907,131.7,131.66,7.5928]
[1750637012437,73.0,131.71,131.62,39.58]
[1750637013530,7.5915,131.69,131.65,7.5932]
[1750637014644,7.5909,131.7,131.66,7.5929]
[1750637014936,73.0,131.71,131.62,39.58]
[1750637015146,7.5912,131.7,131.66,7.5929]
[1750637016443,7.5912,131.7,131.67,7.5924]
[1750637017739,7.5912,131.7,131.62,39.58]
[1750637018738,73.0,131.71,131.62,39.58]
[1750637019044,219.82,131.71,131.63,7.5944]
[1750637019346,7.5928,131.67,131.63,7.5944]
[1750637019551,39.42,131.66,131.64,7.5941]
[1750637021652,39.42,131.66,131.61,2.4674]
[1750637021850,39.42,131.66,131.59,2.423]
[1750637022258,7.5939,131.65,131.61,7.5958]
[1750637022949,47.0132,131.66,131.62,7.5952]
[1750637023150,39.42,131.66,131.62,7.5952]
[1750637024154,39.42,131.66,131.59,2.423]
[1750637024355,39.42,131.67,131.6,2.407]
[1750637024556,47.0127,131.67,131.63,7.5942]
[1750637026160,47.0127,131.67,131.6,2.407]
[1750637026161,7.593,131.66,131.62,7.5948]
[1750637026464,39.42,131.67,131.59,2.423]
[1750637026652,39.42,131.67,131.57,2.522]